fUST/lending_fUST_20250414
["ID","MTS","AMOUNT","RATE_DAILY","PERIOD"]
[357986976,1744644631991,-500.0,0.00022666,2]
[357986977,1744644632001,-515.51826297,0.00022666,2]
[357986978,1744644632011,-500.0,0.00022666,2]
[357986979,1744644632020,-200.0,0.00022666,2]
[357986980,1744644632030,-500.0,0.00022666,2]
[357986981,1744644632039,-500.0,0.00022666,2]
[357986982,1744644632049,-500.0,0.00022666,2]
[357986983,1744644632058,-500.0,0.00022666,2]
[357986984,1744644632067,-468.50813946,0.00022666,2]
[357986985,1744644632077,-500.0,0.00022666,2]
[357986986,1744644632087,-500.0,0.00022666,2]
[357986987,1744644632095,-508.74201452,0.00022666,2]
[357986988,1744644632105,-500.0,0.00022666,2]
[357986989,1744644632116,-500.0,0.00022666,2]
[357986990,1744644632127,-500.0,0.00022666,2]
[357986991,1744644632137,-500.0,0.00022666,2]
[357986992,1744644632146,-500.0,0.00022666,2]
[357986993,1744644632155,-500.0,0.00022666,2]
[357986994,1744644632163,-500.0,0.00022666,2]
[357986995,1744644632172,-500.0,0.00022666,2]
[357986996,1744644632187,-500.0,0.00022666,2]
[357986997,1744644632198,-500.0,0.00022666,2]
[357986998,1744644632207,-256.02193198,0.00022666,2]
[357986999,1744644632219,-243.97806802,0.00022666,2]
[357987000,1744644632229,-500.0,0.00022666,2]
[357987001,1744644632238,-500.0,0.00022666,2]
[357987002,1744644632248,-500.0,0.00022666,2]
[357987003,1744644632257,-500.0,0.00022666,2]
[357987004,1744644632267,-500.0,0.00022666,2]
[357987005,1744644632276,-500.0,0.00022666,2]
[357987006,1744644632286,-500.0,0.00022666,2]
[357987007,1744644632296,-500.0,0.00022666,2]
[357987008,1744644632306,-500.0,0.00022666,2]
[357987009,1744644632316,-500.0,0.00022666,2]
[357987010,1744644632328,-500.0,0.00022666,2]
[357987011,1744644632339,-500.0,0.00022666,2]
[357987012,1744644632349,-500.0,0.00022666,2]
[357987013,1744644632359,-500.0,0.00022666,2]
[357987014,1744644632369,-500.0,0.00022666,2]
[357987015,1744644632379,-500.0,0.00022666,2]
[357987016,1744644632388,-500.0,0.00022666,2]
[357987017,1744644632398,-500.0,0.00022666,2]
[357987018,1744644632407,-500.0,0.00022666,2]
[357987019,1744644632418,-500.0,0.00022666,2]
[357987020,1744644632428,-500.0,0.00022666,2]
[357987021,1744644632437,-500.0,0.00022666,2]
[357987022,1744644632447,-500.0,0.00022666,2]
[357987023,1744644632457,-500.0,0.00022666,2]
[357987024,1744644632467,-500.0,0.00022666,2]
[357987025,1744644632477,-500.0,0.00022666,2]
[357987026,1744644632487,-500.0,0.00022666,2]
[357987027,1744644632497,-500.0,0.00022666,2]
[357987028,1744644632507,-500.0,0.00022666,2]
[357987029,1744644632518,-500.0,0.00022666,2]
[357987030,1744644632528,-500.0,0.00022666,2]
[357987031,1744644632539,-652.30623684,0.00022666,2]
[357987032,1744644632549,-652.30623684,0.00022666,2]
[357987033,1744644632559,-652.30623684,0.00022666,2]
[357987034,1744644632568,-652.30623684,0.00022666,2]
[357987035,1744644632580,-652.30623684,0.00022666,2]
[357987036,1744644632590,-652.30623684,0.00022666,2]
[357987037,1744644632600,-652.30623684,0.00022666,2]
[357987038,1744644632610,-652.30623684,0.00022666,2]
[357987039,1744644632620,-652.30623684,0.00022666,2]
[357987040,1744644632630,-652.30623684,0.00022666,2]
[357987041,1744644632641,-652.30623684,0.00022666,2]
[357987042,1744644632651,-652.30623684,0.00022666,2]
[357987043,1744644632662,-652.30623684,0.00022666,2]
[357987044,1744644632673,-652.30623684,0.00022666,2]
[357987045,1744644632683,-652.30623684,0.00022666,2]
[357987046,1744644632693,-652.30623684,0.00022666,2]
[357987047,1744644632703,-652.30623684,0.00022666,2]
[357987048,1744644632713,-652.30623684,0.00022666,2]
[357987049,1744644632724,-652.30623684,0.00022666,2]
[357987050,1744644632734,-652.30623684,0.00022666,2]
[357987051,1744644632745,-652.30623684,0.00022666,2]
[357987052,1744644632755,-652.30623684,0.00022666,2]
[357987053,1744644632765,-652.30623684,0.00022666,2]
[357987054,1744644632775,-652.30623684,0.00022666,2]
[357987055,1744644632786,-652.30623684,0.00022666,2]
[357987056,1744644632796,-647.64690658,0.00022666,2]
[357987057,1744644632806,-647.64690658,0.00022666,2]
[357987058,1744644632818,-647.64690658,0.00022666,2]
[357987059,1744644632830,-647.64690658,0.00022666,2]
[357987060,1744644632841,-647.64690658,0.00022666,2]
[357987061,1744644632851,-647.64690658,0.00022666,2]
[357987062,1744644632861,-647.64690658,0.00022666,2]
[357987063,1744644632871,-647.64690658,0.00022666,2]
[357987064,1744644632882,-647.64690658,0.00022666,2]
[357987065,1744644632892,-647.64690658,0.00022666,2]
[357987066,1744644632902,-647.64690658,0.00022666,2]
[357987067,1744644632913,-647.64690658,0.00022666,2]
[357987068,1744644632923,-647.64690658,0.00022666,2]
[357987069,1744644632934,-647.64690658,0.00022666,2]
[357987070,1744644632944,-647.64690658,0.00022666,2]
[357987071,1744644632954,-647.64690658,0.00022666,2]
[357987072,1744644632965,-647.64690658,0.00022666,2]
[357987073,1744644632975,-647.64690658,0.00022666,2]
[357987074,1744644632985,-641.75920743,0.00022666,2]
[357987075,1744644632995,-641.75920743,0.00022666,2]
[357987076,1744644633005,-641.75920743,0.00022666,2]
[357987077,1744644633016,-641.75920743,0.00022666,2]
[357987078,1744644633028,-641.75920743,0.00022666,2]
[357987079,1744644633039,-641.75920743,0.00022666,2]
[357987080,1744644633050,-641.75920743,0.00022666,2]
[357987081,1744644633060,-641.75920743,0.00022666,2]
[357987082,1744644633071,-641.75920743,0.00022666,2]
[357987083,1744644633083,-641.75920743,0.00022666,2]
[357987084,1744644633093,-641.75920743,0.00022666,2]
[357987085,1744644633104,-641.75920743,0.00022666,2]
[357987086,1744644633115,-641.75920743,0.00022666,2]
[357987087,1744644633128,-641.75920743,0.00022666,2]
[357987088,1744644633138,-641.75920743,0.00022666,2]
[357987089,1744644633148,-641.75920743,0.00022666,2]
[357987090,1744644633161,-662.13251559,0.00022666,2]
[357987091,1744644633170,-662.13251559,0.00022666,2]
[357987092,1744644633179,-662.13251559,0.00022666,2]
[357987093,1744644633189,-662.13251559,0.00022666,2]
[357987094,1744644633202,-662.13251559,0.00022666,2]
[357987095,1744644633211,-37.48756298,0.00022666,2]
[357987096,1744644633226,-624.64495261,0.00022666,2]
[357987097,1744644633236,-662.13251559,0.00022666,2]
[357987098,1744644633246,-151.0,0.00022668,2]
[357987099,1744644633256,-416.0,0.0002267,2]
[357987100,1744644633267,-151.0,0.0002267,2]
[357987101,1744644633277,-151.0,0.0002267,2]
[357987102,1744644633287,-151.0,0.0002267,2]
[357987103,1744644633296,-151.0,0.0002267,2]
[357987104,1744644633306,-355.63416494,0.00022673,2]
[357987105,1744644633315,-500.0,0.00022673,2]
[357987106,1744644633326,-500.0,0.00022673,2]
[357987107,1744644633336,-453.98424633,0.00022673,2]
[357987108,1744644633346,-500.0,0.00022673,2]
[357987109,1744644633356,-501.6389006,0.00022673,2]
[357987110,1744644633367,-500.0,0.00022673,2]
[357987111,1744644633378,-500.0,0.00022673,2]
[357987112,1744644633388,-500.0,0.00022673,2]
[357987113,1744644633398,-500.0,0.00022673,2]
[357987114,1744644633408,-500.0,0.00022673,2]
[357987115,1744644633419,-500.0,0.00022673,2]
[357987116,1744644633429,-594.64551039,0.00022673,2]
[357987117,1744644633557,-500.0,0.00022673,2]
[357987118,1744644633568,-500.0,0.00022673,2]
[357987119,1744644633583,-500.0,0.00022673,2]
[357987120,1744644633594,-500.0,0.00022673,2]
[357987121,1744644633604,-500.0,0.00022673,2]
[357987122,1744644633615,-500.0,0.00022673,2]
[357987123,1744644633625,-500.0,0.00022673,2]
[357987124,1744644633635,-500.0,0.00022673,2]
[357987125,1744644633645,-500.0,0.00022673,2]
[357987126,1744644633655,-500.0,0.00022673,2]
[357987127,1744644633665,-500.0,0.00022673,2]
[357987128,1744644633675,-500.0,0.00022673,2]
[357987129,1744644633685,-500.0,0.00022673,2]
[357987130,1744644633695,-500.0,0.00022673,2]
[357987131,1744644633706,-500.0,0.00022673,2]
[357987132,1744644633728,-500.0,0.00022673,2]
[357987133,1744644633751,-500.0,0.00022673,2]
[357987134,1744644633773,-500.0,0.00022673,2]
[357987135,1744644633795,-500.0,0.00022673,2]
[357987136,1744644633816,-224.10404573,0.00022673,2]
[357987137,1744644633841,-563.1260286,0.00022673,2]
[357987138,1744644633863,-500.0,0.00022673,2]
[357987139,1744644633887,-300.3959759,0.00022673,2]
[357987140,1744644633911,-151.0,0.00022673,2]
[357987141,1744644633933,-416.0,0.00022725,2]
[357987142,1744644633957,-151.0,0.00022725,2]
[357987143,1744644633979,-416.0,0.0002278,2]
[357987144,1744644633997,-416.0,0.00022834,2]
[357987145,1744644634007,-416.0,0.00022889,2]
[357987146,1744644634018,-416.0,0.00022944,2]
[357987147,1744644634028,-416.0,0.00022999,2]
[357987148,1744644634038,-246.48541884,0.00023,2]
[357987149,1744644634048,-416.0,0.00023054,2]
[357987150,1744644634058,-416.0,0.00023108,2]
[357987151,1744644634068,-416.0,0.00023163,2]
[357987152,1744644634083,-416.0,0.00023218,2]
[357987153,1744644634094,-416.0,0.00023273,2]
[357987154,1744644634103,-416.0,0.00023328,2]
[357987155,1744644634115,-416.0,0.00023382,2]
[357987156,1744644634128,-416.0,0.00023437,2]
[357987157,1744644634139,-500.0,0.00023473,2]
[357987158,1744644634149,-416.0,0.00023492,2]
[357987159,1744644634159,-87235.0,0.000235,2]
[357987160,1744644634169,-416.0,0.00023547,2]
[357987161,1744644634179,-416.0,0.00023602,2]
[357987162,1744644634190,-411.2690894,0.0002364,2]
[357987163,1744644634202,-416.0,0.00023656,2]
[357987164,1744644634212,-416.0,0.00023711,2]
[357987165,1744644634223,-24900.0,0.00023719,2]
[357987166,1744644634233,-416.0,0.00023766,2]
[357987167,1744644634243,-416.0,0.00023821,2]
[357987168,1744644634253,-416.0,0.00023875,2]
[357987169,1744644634263,-432.00505226,0.0002393,2]
[357987170,1744644634273,-1672.86144246,0.00024,2]
[357987171,1744644634283,-824.53377593,0.000244,5]
[357987172,1744644634292,-151.0,0.00024453,2]
[357987173,1744644634302,-9052.4451254,0.00024466,2]
[357987174,1744644634315,-727.10796862,0.00024466,2]
[357987175,1744644634359,-18278.30533045,0.00024466,2]
[357987184,1744644638018,-1381.9,0.00024466,2]
[357987186,1744644638031,-52853.98414069,0.00024466,2]
[357987187,1744644638040,-151.0,0.00024466,7]
[357987188,1744644638050,-151.180446,0.00024466,7]
[357987189,1744644638060,-438.628398,0.00024466,7]
[357987190,1744644638070,-352.68173,0.00024466,7]
[357987191,1744644638083,-352.68173,0.00024466,7]
[357987192,1744644638093,-438.628398,0.00024466,7]
[357987193,1744644638103,-2256.73614674,0.00024468,2]
[357987194,1744644638118,-1088.99997467,0.00024468,3]
[357987195,1744644638128,-74058.20553463,0.00024468,2]
[357987196,1744644638141,-99182.16756059,0.00024468,2]
[357987197,1744644638307,-42363.96088871,0.00024468,2]
[357987198,1744644638340,-5950.5115107,0.00024468,2]
[357987253,1744644640411,-735.78660761,0.00024468,2]
[357987542,1744644643233,-19060.3089245,0.00024468,2]
[357987544,1744644643245,-6250.0940004,0.00024468,2]
[357987835,1744644646017,-904.59999994,0.00024468,2]
[357987853,1744644646194,-28979.4853308,0.00024468,2]
[357990125,1744645138870,-170.7699074,0.00025,10]
[357990126,1744645138938,-38360.38033898,0.00026,10]
[357990127,1744645139002,-160.0,0.00026,10]
[357990128,1744645139063,-160.0,0.00026,10]
[357990129,1744645139129,-160.0,0.00026,10]
[357990130,1744645139207,-152.82,0.000279,31]
[357990131,1744645139283,-152.82,0.000279,31]
[357990132,1744645139358,-152.82,0.000279,31]
[357990133,1744645139431,-152.82,0.000279,31]
[357990134,1744645139503,-152.82,0.000279,31]
[357990135,1744645139578,-152.82,0.000279,31]
[357990136,1744645139651,-152.82,0.000279,31]
[357990137,1744645139724,-152.82,0.000279,31]
[357990138,1744645139795,-152.82,0.000279,31]
[357990139,1744645139871,-453.01113131,0.0003,10]
[357990140,1744645139947,-152.82,0.000308,31]
[357990141,1744645140018,-152.82,0.000308,31]
[357990142,1744645140249,-152.82,0.000308,31]
[357990143,1744645140332,-152.82,0.000308,31]
[357990144,1744645140412,-152.82,0.000308,31]
[357990145,1744645140490,-152.82,0.000308,31]
[357990146,1744645140563,-152.82,0.000308,31]
[357990147,1744645140634,-152.82,0.000308,31]
[357990148,1744645140704,-152.82,0.000308,31]
[357990149,1744645140793,-152.82,0.000308,31]
[357990150,1744645140870,-152.82,0.000308,31]
[357990151,1744645140945,-152.82,0.000308,31]
[357990152,1744645141022,-152.82,0.000308,31]
[357990153,1744645141104,-152.82,0.000308,31]
[357990154,1744645141177,-152.82,0.000308,31]
[357990155,1744645141246,-152.82,0.000308,31]
[357990156,1744645141320,-152.82,0.000308,31]
[357990157,1744645141398,-152.82,0.000308,31]
[357990158,1744645141470,-797.0493165,0.00031624,10]
[357990159,1744645141541,-160.0,0.00032,10]
[357990160,1744645141614,-246.9438,0.000323,120]
[357990161,1744645141689,-797.0493165,0.00032417,10]
[357990162,1744645141754,-838.92,0.000329,30]
[357990163,1744645141820,-2248.19,0.000329,30]
[357990164,1744645141891,-797.0493165,0.0003321,11]
[357990165,1744645141967,-152.82,0.000338,31]
[357990166,1744645142041,-152.82,0.000338,31]
[357990167,1744645142112,-152.82,0.000338,31]
[357990168,1744645142184,-152.82,0.000338,31]
[357990169,1744645142256,-152.82,0.000338,31]
[357990170,1744645142329,-152.82,0.000338,31]
[357990171,1744645142395,-152.82,0.000338,31]
[357990172,1744645142466,-152.82,0.000338,31]
[357990173,1744645142538,-152.82,0.000338,31]
[357990174,1744645142606,-152.82,0.000338,31]
[357990175,1744645142672,-152.82,0.000338,31]
[357990176,1744645142739,-152.82,0.000338,31]
[357990177,1744645142806,-152.82,0.000338,31]
[357990178,1744645142887,-152.82,0.000338,31]
[357990179,1744645142966,-152.82,0.000338,31]
[357990180,1744645143044,-152.82,0.000338,31]
[357990181,1744645143133,-152.82,0.000338,31]
[357990182,1744645143211,-797.0493165,0.00034003,11]
[357990183,1744645143281,-529.06,0.000347,120]
[357990184,1744645143351,-797.0493165,0.00034797,12]
[357990185,1744645143422,-734.26311391,0.00035,120]
[357990186,1744645143493,-1500.0,0.00035,15]
[357990187,1744645143556,-838.92,0.000351,30]
[357990188,1744645143624,-2248.19,0.000351,30]
[357990189,1744645143693,-797.0493165,0.0003559,12]
[357990190,1744645143874,-358.99603614,0.00036,30]
[357990191,1744645143940,-500.0,0.00036,10]
[357990192,1744645144003,-500.0,0.000361,11]
[357990193,1744645144064,-500.0,0.000362,11]
[357990194,1744645144127,-500.0,0.000363,12]
[357990195,1744645144193,-797.0493165,0.00036383,13]
[357990196,1744645144254,-151.89673624,0.00036384,30]
[357990197,1744645144321,-820.605142,0.000364,13]
[357990198,1744645144380,-689.94686767,0.000365,120]
[357990199,1744645144442,-151.0,0.00036575,14]
[357990200,1744645144499,-151.89673624,0.00036658,30]
[357990201,1744645144554,-838.92,0.000367,30]
[357990202,1744645144612,-2248.19,0.000367,30]
[357990203,1744645144672,-394.765559,0.000367,14]
[357990204,1744645144730,-394.765552,0.000367,14]
[357990205,1744645144798,-152.82,0.000368,31]
[357990206,1744645144870,-152.82,0.000368,31]
[357990207,1744645144939,-152.82,0.000368,31]
[357990208,1744645145007,-152.82,0.000368,31]
[357990209,1744645145082,-152.82,0.000368,31]
[357990210,1744645145146,-152.82,0.000368,31]
[357990211,1744645145214,-152.82,0.000368,31]
[357990212,1744645145283,-152.82,0.000368,31]
[357990213,1744645145379,-152.82,0.000368,31]
[357990214,1744645145478,-152.82,0.000368,31]
[357990215,1744645145574,-152.82,0.000368,31]
[357990216,1744645145664,-152.82,0.000368,31]
[357990217,1744645145761,-152.82,0.000368,31]
[357990218,1744645145855,-152.82,0.000368,31]
[357990219,1744645145939,-152.82,0.000368,31]
[357990220,1744645146026,-152.82,0.000368,31]
[357990221,1744645146115,-152.82,0.000368,31]
[357990222,1744645146195,-152.82,0.000368,31]
[357990223,1744645146272,-151.89673624,0.00036932,30]
[357990224,1744645146355,-1654.97005988,0.00036986,120]
[357990225,1744645146430,-160.0,0.00037,30]
[357990226,1744645146506,-160.0,0.00037,30]
[357990227,1744645146579,-160.0,0.00037,30]
[357990228,1744645146659,-797.0493165,0.00037176,13]
[357990229,1744645146737,-151.89673624,0.00037205,30]
[357990230,1744645146813,-151.89673624,0.00037479,30]
[357990231,1744645146890,-1500.0,0.000375,15]
[357990232,1744645146966,-1500.0,0.000375,120]
[357990233,1744645147040,-1500.0,0.000375,15]
[357990234,1744645147113,-1150.44,0.000375,15]
[357990235,1744645147187,-1500.0,0.000375,15]
[357990236,1744645147442,-1500.0,0.000375,15]
[357990237,1744645147503,-1500.0,0.000375,15]
[357990238,1744645147559,-151.89673624,0.00037753,30]
[357990239,1744645147617,-797.0493165,0.00037969,14]
[357990240,1744645147673,-581.50514857,0.00038,120]
[357990241,1744645147731,-151.89673624,0.00038027,30]
[357990242,1744645147791,-151.89673624,0.00038301,30]
[357990243,1744645147851,-838.92,0.000387,30]
[357990244,1744645147909,-2248.19,0.000387,30]
[357990245,1744645147972,-797.0493165,0.00038762,14]
[357990246,1744645148038,-1200.0,0.00039,14]
[357990247,1744645148102,-289.56494,0.00039,120]
[357990248,1744645148160,-160.0,0.00039,30]
[357990249,1744645148218,-160.64714886,0.00039,10]
[357990250,1744645148284,-797.0493165,0.00039555,15]
[357990251,1744645148358,-152.82,0.000398,31]
[357990252,1744645148431,-152.82,0.000398,31]
[357990253,1744645148500,-152.82,0.000398,31]
[357990254,1744645148570,-152.82,0.000398,31]
[357990255,1744645148640,-152.82,0.000398,31]
[357990256,1744645148714,-152.82,0.000398,31]
[357990257,1744645148785,-152.82,0.000398,31]
[357990258,1744645148857,-152.82,0.000398,31]
[357990259,1744645148928,-152.82,0.000398,31]
[357990260,1744645148996,-152.82,0.000398,31]
[357990261,1744645149066,-152.82,0.000398,31]
[357990262,1744645149136,-152.82,0.000398,31]
[357990263,1744645149208,-152.82,0.000398,31]
[357990264,1744645149277,-152.82,0.000398,31]
[357990265,1744645149350,-152.82,0.000398,31]
[357990266,1744645149420,-152.82,0.000398,31]
[357990267,1744645149483,-1500.0,0.000399,30]
[357990268,1744645149543,-1500.0,0.000399,30]
[357990269,1744645149604,-856.84695604,0.00039979,14]
[357990270,1744645149667,-500.0,0.0004,14]
[357990271,1744645149731,-506.30668144,0.0004,10]
[357990272,1744645149812,-410.51096741,0.0004,120]
[357990273,1744645149895,-1124.33405334,0.0004,120]
[357990274,1744645149957,-244.21446431,0.0004,120]
[357990275,1744645150016,-183.83656962,0.0004,120]
[357990276,1744645150080,-411.33739644,0.0004,30]
[357990277,1744645150142,-199.0,0.0004,10]
[357990278,1744645150204,-200.0,0.0004,30]
[357990279,1744645150263,-2000.0,0.0004,26]
[357990280,1744645150324,-312.45808972,0.0004,120]
[357990281,1744645150381,-1000.0,0.0004,120]
[357990282,1744645150438,-160.0,0.0004,120]
[357990283,1744645150497,-838.92,0.000403,30]
[357990284,1744645150649,-2248.19,0.000403,30]
[357990285,1744645150708,-797.0493165,0.00040348,15]
[357990286,1744645150767,-151.0,0.00040548,14]
[357990287,1744645150835,-151.0,0.00040548,14]
[357990288,1744645150914,-151.0,0.00040548,14]
[357990289,1744645150986,-151.0,0.00040548,14]
[357990290,1744645151047,-151.0,0.00040548,14]
[357990291,1744645151106,-151.0,0.00040548,14]
[357990292,1744645151166,-151.0,0.00040548,14]
[357990293,1744645151227,-151.0,0.00040548,14]
[357990294,1744645151296,-151.0,0.00040548,14]
[357990295,1744645151366,-151.0,0.00040548,14]
[357990296,1744645151437,-156.485217,0.00040548,14]
[357990297,1744645151504,-203.0,0.0004067,30]
[357990298,1744645151570,-200.0,0.00041,30]
[357990299,1744645151633,-1500.0,0.00041,120]
[357990300,1744645151692,-1500.0,0.00041,120]
[357990301,1744645151749,-1000.0,0.00041,120]
[357990302,1744645151809,-1500.0,0.00041,120]
[357990303,1744645151867,-2000.0,0.00041,28]
[357990304,1744645151921,-150.5,0.0004107,30]
[357990305,1744645151979,-150.5,0.0004107,120]
[357990306,1744645152036,-150.5,0.0004108,30]
[357990307,1744645152092,-150.5,0.0004108,120]
[357990308,1744645152147,-150.5,0.0004109,30]
[357990309,1744645152202,-150.5,0.0004109,120]
[357990310,1744645152263,-151.0,0.00041096,60]
[357990311,1744645152319,-151.0,0.00041096,60]
[357990312,1744645152375,-151.0,0.00041096,60]
[357990313,1744645152433,-151.0,0.00041096,60]
[357990314,1744645152491,-151.0,0.00041096,60]
[357990315,1744645152550,-151.0,0.00041096,60]
[357990316,1744645152608,-151.0,0.00041096,60]
[357990317,1744645152662,-151.0,0.00041096,60]
[357990318,1744645152717,-151.0,0.00041096,60]
[357990319,1744645152775,-151.0,0.00041096,60]
[357990320,1744645152837,-275.0,0.00041096,60]
[357990321,1744645152898,-500.0,0.00041096,31]
[357990322,1744645152965,-500.0,0.00041096,31]
[357990323,1744645153033,-479.66447678,0.00041096,31]
[357990324,1744645153106,-500.0,0.000411,10]
[357990325,1744645153175,-797.0493165,0.00041141,16]
[357990326,1744645153237,-1000.0,0.00041233,20]
[357990327,1744645153300,-1000.0,0.00041233,20]
[357990328,1744645153365,-1000.0,0.0004137,20]
[357990329,1744645153426,-1000.0,0.0004137,20]
[357990330,1744645153487,-1000.0,0.00041507,20]
[357990331,1744645153547,-1000.0,0.00041507,20]
[357990332,1744645153605,-1000.0,0.00041644,20]
[357990333,1744645153664,-1000.0,0.00041781,20]
[357990334,1744645153721,-1000.0,0.00041918,20]
[357990335,1744645153788,-797.0493165,0.00041934,16]
[357990336,1744645153850,-265.05,0.0004197,120]
[357990337,1744645153910,-150.5,0.0004198,120]
[357990338,1744645153972,-150.5,0.0004199,120]
[357990339,1744645154032,-200.0,0.00042,14]
[357990340,1744645154096,-1500.0,0.00042,120]
[357990341,1744645154157,-2381.55,0.00042,120]
[357990342,1744645154215,-1298.96,0.00042,120]
[357990343,1744645154272,-1500.0,0.00042,120]
[357990344,1744645154331,-1643.22,0.00042,120]
[357990345,1744645154389,-1500.0,0.00042,120]
[357990346,1744645154445,-1195.64,0.00042,120]
[357990347,1744645154502,-1500.0,0.00042,120]
[357990348,1744645154559,-1500.0,0.00042,120]
[357990349,1744645154619,-1500.0,0.00042,120]
[357990350,1744645154784,-1500.0,0.00042,120]
[357990351,1744645154846,-1500.0,0.00042,120]
[357990352,1744645154903,-1500.0,0.00042,120]
[357990353,1744645154960,-1500.0,0.00042,120]
[357990354,1744645155020,-1089.50995384,0.00042,120]
[357990355,1744645155081,-1500.0,0.00042,120]
[357990356,1744645155140,-1500.0,0.00042,120]
[357990357,1744645155198,-1500.0,0.00042,120]
[357990358,1744645155258,-1500.0,0.00042,120]
[357990359,1744645155323,-1265.67,0.00042,120]
[357990360,1744645155381,-1500.0,0.00042,120]
[357990361,1744645155439,-1500.0,0.00042,120]
[357990362,1744645155497,-1500.0,0.00042,120]
[357990363,1744645155554,-1163.7830515,0.00042,120]
[357990364,1744645155615,-1492.22,0.00042,30]
[357990365,1744645155679,-1500.0,0.00042,30]
[357990366,1744645155741,-1500.0,0.00042,30]
[357990367,1744645155805,-1500.0,0.00042,30]
[357990368,1744645155870,-1500.0,0.00042,30]
[357990369,1744645155936,-1000.0,0.00042,120]
[357990370,1744645155999,-1000.0,0.00042055,20]
[357990371,1744645156063,-203.0,0.0004208,30]
[357990372,1744645156129,-150.5,0.0004217,30]
[357990373,1744645156191,-150.5,0.0004218,30]
[357990374,1744645156254,-150.5,0.0004219,30]
[357990375,1744645156323,-203.3,0.0004219,30]
[357990376,1744645156387,-1000.0,0.00042192,20]
[357990377,1744645156450,-1000.0,0.00042329,20]
[357990378,1744645156514,-1000.0,0.00042466,20]
[357990379,1744645156576,-399.53956489,0.00042466,10]
[357990380,1744645156638,-821.91070141,0.00042471,10]
[357990381,1744645156701,-1002.6832,0.00042471,10]
[357990382,1744645156763,-1500.0,0.00042471,10]
[357990383,1744645156828,-838.92,0.000425,30]
[357990384,1744645156892,-2248.19,0.000425,30]
[357990385,1744645156951,-1000.0,0.00042603,20]
[357990386,1744645157012,-797.0493165,0.00042728,17]
[357990387,1744645157072,-1000.0,0.0004274,20]
[357990388,1744645157133,-1000000.99999999,0.000428,120]
[357990389,1744645157192,-1000.0,0.00042877,20]
[357990390,1744645157252,-575.52152554,0.00043,120]
[357990391,1744645157314,-200.0,0.00043,30]
[357990392,1744645157372,-201.54,0.00043,14]
[357990393,1744645157430,-1000.0,0.00043,30]
[357990394,1744645157489,-1500.0,0.00043,30]
[357990395,1744645157548,-34000.0,0.00043,30]
[357990396,1744645157604,-1233.0,0.00043,120]
[357990397,1744645157661,-1000.0,0.00043014,20]
[357990398,1744645157717,-1000.0,0.00043151,20]
[357990399,1744645157776,-34000.0,0.000432,40]
[357990400,1744645157837,-158.502434,0.00043232,60]
[357990401,1744645157893,-1000.0,0.00043288,20]
[357990402,1744645157949,-34000.0,0.000434,50]
[357990403,1744645158005,-200.0,0.00043407,120]
[357990404,1744645158061,-1000.0,0.00043425,20]
[357990405,1744645158122,-203.0,0.000435,30]